fUSD/lending_fUSD_20240101
["ID","MTS","AMOUNT","RATE_DAILY","PERIOD"]
[309795459,1704142242637,-151.0,0.00038,7]
[309795460,1704142242646,-151.0,0.00038,7]
[309795461,1704142242655,-332.691786,0.00038,7]
[309795462,1704142242665,-332.691786,0.00038,7]
[309795463,1704142242674,-168.0,0.00038,2]
[309795464,1704142242683,-150.0,0.0003802,2]
[309795466,1704142242692,-150.0,0.0003804,2]
[309795467,1704142242701,-150.0,0.00038086,2]
[309795468,1704142242711,-150.0,0.00038166,2]
[309795469,1704142242720,-150.0,0.00038194,2]
[309795470,1704142242729,-345.76,0.000382,2]
[309795471,1704142242739,-150.0,0.00038226,2]
[309795473,1704142242748,-150.0,0.00038228,2]
[309795475,1704142242757,-1647.04871498,0.00038231,28]
[309795477,1704142242766,-269.52648563,0.00038231,2]
[309795478,1704142242776,-150.0,0.00038246,2]
[309795480,1704142242785,-200.0,0.00038324,10]
[309795482,1704142242795,-1632.61617012,0.00038332,2]
[309795485,1704142242805,-1000.0,0.00038356,2]
[309795486,1704142242814,-209.3091272,0.00038356,2]
[309795488,1704142242823,-150.0,0.00038389,2]
[309795489,1704142242832,-5567.0,0.000384,2]
[309795490,1704142242841,-150.0,0.00038411,2]
[309795491,1704142242850,-150.0,0.00038421,2]
[309795492,1704142242859,-150.0,0.00038472,2]
[309795493,1704142242868,-293.671,0.00038502,2]
[309795494,1704142242878,-2892.0,0.00038502,2]
[309795495,1704142242887,-4898.024,0.00038502,2]
[309795496,1704142242896,-2847.773,0.00038502,2]
[309795497,1704142242906,-5592.966,0.00038502,2]
[309795498,1704142242915,-2647.594,0.00038502,2]
[309795499,1704142242924,-9200.745,0.00038502,2]
[309795500,1704142242933,-2258.0,0.00038502,2]
[309795501,1704142242954,-235.64446864,0.00038511,2]
[309795502,1704142242966,-167.58,0.00038521,2]
[309795503,1704142242977,-393.31890722,0.00038535,4]
[309795504,1704142242989,-150.0,0.00038549,2]
[309795505,1704142242999,-150.0,0.00038555,2]
[309795506,1704142243009,-150.0,0.0003857,2]
[309795507,1704142243019,-582.44,0.00038574,2]
[309795508,1704142243029,-150.0,0.0003861,2]
[309795509,1704142243040,-150.0,0.0003866,2]
[309795510,1704142243049,-150.0,0.00038671,2]
[309795511,1704142243059,-200.0,0.00038685,2]
[309795512,1704142243069,-150.0,0.00038722,2]
[309795513,1704142243079,-150.0,0.00038727,2]
[309795514,1704142243089,-2615.0,0.00038734,2]
[309795515,1704142243101,-150.0,0.00038736,2]
[309795516,1704142243111,-183.36,0.00038785,2]
[309795517,1704142243121,-982.55618655,0.00038827,2]
[309795518,1704142243131,-186.05,0.00038836,2]
[309795519,1704142243141,-2056.64016573,0.00038851,28]
[309795520,1704142243151,-151.0,0.00038851,7]
[309795521,1704142243160,-381.621161,0.00038851,7]
[309795522,1704142243170,-381.621161,0.00038851,7]
[309795523,1704142243181,-151.0,0.00038851,7]
[309795524,1704142243190,-151.0,0.00038851,7]
[309795526,1704142243200,-151.0,0.00038851,7]
[309795527,1704142243209,-151.0,0.00038851,7]
[309795528,1704142243219,-151.0,0.00038851,7]
[309795529,1704142243228,-151.0,0.00038851,7]
[309795530,1704142243238,-151.0,0.00038851,7]
[309795531,1704142243247,-332.691786,0.00038851,7]
[309795532,1704142243258,-332.691786,0.00038851,7]
[309795533,1704142243268,-217.48153882,0.00038851,4]
[309795534,1704142243278,-282.25366019,0.00038851,4]
[309795535,1704142243287,-283.29816887,0.00038851,4]
[309795536,1704142243297,-1019.77203311,0.00038851,4]
[309795537,1704142243306,-155.0,0.00038851,4]
[309795538,1704142243316,-500.0,0.00038851,5]
[309795539,1704142243325,-7230.80899701,0.00038851,4]
[309795540,1704142243334,-987.31885076,0.00038851,2]
[309795541,1704142243344,-291.16755468,0.00038851,4]
[309795542,1704142243353,-6063.54728152,0.00038851,4]
[309795543,1704142243363,-7401.10783465,0.00038851,4]
[309795544,1704142243376,-519.78453749,0.00038851,4]
[309795545,1704142243386,-155.0,0.00038851,2]
[309795546,1704142243395,-359.94121681,0.00038851,4]
[309795547,1704142243405,-854.13879068,0.00038851,4]
[309795548,1704142243416,-531.55305458,0.00038851,4]
[309795549,1704142243427,-150.0,0.00038869,2]
[309795550,1704142243437,-150.0,0.0003889,2]
[309795551,1704142243448,-150.0,0.00038899,2]
[309795552,1704142243458,-400.0,0.000389,14]
[309795553,1704142243469,-150.0,0.00038908,2]
[309795554,1704142243480,-176.92113003,0.00038908,7]
[309795555,1704142243492,-1000.0,0.00038909,10]
[309795556,1704142243503,-169.2362814,0.00038909,10]
[309795557,1704142243513,-206.25422366,0.00038909,10]
[309795558,1704142243524,-4542.51972114,0.00038909,10]
[309795559,1704142243534,-208.33759966,0.00038909,5]
[309795560,1704142243543,-155.0,0.00038924,4]
[309795561,1704142243553,-1647.67379549,0.00038924,4]
[309795562,1704142243563,-155.17463146,0.00038924,4]
[309795563,1704142243572,-7167.12844311,0.00038927,11]
[309795564,1704142243582,-4491.21927266,0.00038927,11]
[309795565,1704142243592,-51073.91863245,0.00038927,11]
[309795566,1704142243602,-19000.49789456,0.00038927,11]
[309795567,1704142243611,-9839.49355903,0.00038927,6]
[309795568,1704142243621,-3770.47757328,0.00038927,6]
[309795569,1704142243631,-1790.7,0.00038927,5]
[309795570,1704142243641,-151.0,0.00038927,7]
[309795571,1704142243650,-151.0,0.00038927,7]
[309795572,1704142243660,-381.621161,0.00038927,7]
[309795573,1704142243670,-381.621161,0.00038927,7]
[309795574,1704142243679,-151.0,0.00038927,7]
[309795575,1704142243689,-157.668288,0.00038927,7]
[309795576,1704142243699,-151.0,0.00038927,7]
[309795577,1704142243708,-266.423983,0.00038927,7]
[309795578,1704142243718,-161.922736,0.00038927,7]
[309795579,1704142243728,-151.0,0.00038927,7]
[309795580,1704142243739,-151.0,0.00038927,7]
[309795581,1704142243748,-332.691786,0.00038927,7]
[309795582,1704142243758,-332.691786,0.00038927,7]
[309795583,1704142243768,-150.0,0.00038942,2]
[309795584,1704142243778,-150.0,0.00038957,2]
[309795585,1704142243788,-150.0,0.00038982,2]
[309795586,1704142243797,-1156.70534181,0.00039,2]
[309795587,1704142243809,-599.27979208,0.00039,2]
[309795588,1704142243819,-8031.13426,0.00039,2]
[309795589,1704142243829,-150.0,0.00039,2]
[309795590,1704142243839,-175.64,0.00039,2]
[309795591,1704142243849,-300.0,0.00039,2]
[309795592,1704142243858,-500.0,0.00039,2]
[309795593,1704142243868,-200.0,0.00039,5]
[309795594,1704142243877,-255.73034242,0.00039,2]
[309795595,1704142243887,-177.32,0.00039035,2]
[309795596,1704142243897,-150.0,0.00039063,2]
[309795597,1704142243907,-150.0,0.00039067,2]
[309795598,1704142243918,-982.55618654,0.00039094,2]
[309795599,1704142243927,-202.00966706,0.00039099,2]
[309795600,1704142243937,-263.01526021,0.00039099,2]
[309795601,1704142243948,-249.8,0.000391,2]
[309795602,1704142243958,-167.0,0.00039106,2]
[309795603,1704142243968,-152.04,0.00039178,2]
[309795604,1704142243978,-171.23,0.00039197,2]
[309795605,1704142243987,-235.64446864,0.00039201,2]
[309795606,1704142243997,-150.0,0.00039208,2]
[309795607,1704142244006,-7500.0,0.00039222,2]
[309795608,1704142244016,-211.06064482,0.00039225,2]
[309795609,1704142244027,-150.0,0.00039228,2]
[309795610,1704142244037,-151.0,0.00039235,7]
[309795611,1704142244047,-151.0,0.00039235,7]
[309795612,1704142244056,-332.691786,0.00039235,7]
[309795613,1704142244065,-332.691786,0.00039235,7]
[309795614,1704142244075,-5589.6596322,0.00039235,10]
[309795615,1704142244085,-78508.1780255,0.00039235,4]
[309795616,1704142244096,-671.78686984,0.00039237,14]
[309795617,1704142244106,-150.0,0.00039238,2]
[309795618,1704142244116,-381.621161,0.00039239,7]
[309795619,1704142244125,-381.621161,0.00039239,7]
[309795620,1704142244135,-151.0,0.00039239,7]
[309795621,1704142244144,-151.0,0.00039239,7]
[309795622,1704142244154,-150.0,0.00039239,2]
[309795623,1704142244163,-150.0,0.00039245,2]
[309795624,1704142244172,-1565.53390474,0.00039246,2]
[309795625,1704142244182,-382.21517695,0.00039246,2]
[309795626,1704142244191,-1842.84,0.00039249,5]
[309795627,1704142244201,-150.0,0.00039249,2]
[309795628,1704142244210,-1500.0,0.00039251,2]
[309795629,1704142244219,-1000.0,0.0003926,2]
[309795630,1704142244228,-150.0,0.00039265,2]
[309795631,1704142244238,-150.0,0.00039275,2]
[309795632,1704142244247,-150.0,0.00039276,2]
[309795633,1704142244256,-150.0,0.00039288,2]
[309795634,1704142244265,-512.62323426,0.0003929,14]
[309795635,1704142244275,-1631.46314703,0.000393,2]
[309795636,1704142244284,-1946.0,0.000393,7]
[309795637,1704142244293,-5589.6596322,0.00039302,10]
[309795638,1704142244302,-22358.6385288,0.00039303,10]
[309795639,1704142244312,-166.61,0.00039309,2]
[309795640,1704142244321,-381.621161,0.00039322,7]
[309795641,1704142244330,-381.621161,0.00039322,7]
[309795642,1704142244339,-151.0,0.00039322,7]
[309795643,1704142244348,-151.0,0.00039322,7]
[309795644,1704142244358,-150.0,0.0003933,2]
[309795645,1704142244367,-150.0,0.00039337,2]
[309795646,1704142244377,-150.0,0.00039339,2]
[309795647,1704142244389,-152.0,0.00039355,3]
[309795648,1704142244398,-342.28707,0.00039357,7]
[309795649,1704142244407,-300.0,0.00039357,2]
[309795650,1704142244416,-647.78,0.00039358,2]
[309795651,1704142244425,-982.55618654,0.00039361,2]
[309795652,1704142244436,-151.0,0.00039361,7]
[309795653,1704142244444,-16768.9788966,0.0003938,10]
[309795654,1704142244454,-22358.6385288,0.0003939,10]
[309795655,1704142244462,-151.0,0.0003939,7]
[309795656,1704142244472,-151.0,0.0003939,7]
[309795657,1704142244482,-332.691786,0.0003939,7]
[309795658,1704142244491,-332.691786,0.0003939,7]
[309795659,1704142244500,-42187.0203991,0.000394,2]
[309795660,1704142244509,-151.0,0.000394,7]
[309795661,1704142244519,-381.621161,0.000394,7]
[309795662,1704142244529,-381.621161,0.000394,7]
[309795663,1704142244538,-151.0,0.000394,7]
[309795664,1704142244547,-342.28707,0.000394,7]
[309795665,1704142244557,-151.0,0.000394,7]
[309795666,1704142244567,-500.0,0.00039412,2]
[309795667,1704142244578,-1500.0,0.00039413,2]
[309795668,1704142244588,-150.0,0.00039424,2]
[309795669,1704142244598,-150.0,0.00039425,2]
[309795670,1704142244607,-150.0,0.00039426,2]
[309795671,1704142244618,-150.0,0.00039436,2]
[309795672,1704142244627,-160.0,0.0003945,2]
[309795673,1704142244637,-1214.17503269,0.00039463,2]
[309795674,1704142244648,-150.0,0.00039478,2]
[309795675,1704142244657,-150.0,0.0003948,2]
[309795676,1704142244668,-512.62323424,0.00039485,14]
[309795677,1704142244677,-900.0,0.000395,14]
[309795678,1704142244687,-150.0,0.00039505,2]
[309795679,1704142244697,-5589.6596322,0.00039509,10]
[309795680,1704142244710,-500.0,0.00039516,2]
[309795681,1704142244719,-4787.6744,0.00039519,2]
[309795682,1704142244729,-150.0,0.0003952,2]
[309795683,1704142244739,-292.22665966,0.00039547,2]
[309795684,1704142244750,-286.44273519,0.00039547,2]
[309795685,1704142244878,-332.691786,0.00039548,7]
[309795686,1704142244901,-332.691786,0.00039548,7]
[309795687,1704142244910,-300.0,0.00039548,2]
[309795688,1704142244920,-175.64,0.00039548,2]
[309795689,1704142244929,-333.76934524,0.00039548,5]
[309795690,1704142244937,-150.0,0.00039548,2]
[309795691,1704142244947,-582.44,0.00039552,2]
[309795692,1704142244956,-179.89309702,0.00039571,2]
[309795693,1704142244965,-150.0,0.00039572,2]
[309795694,1704142244974,-1632.61617012,0.00039578,2]
[309795695,1704142244983,-151.0,0.00039578,7]
[309795696,1704142244993,-151.0,0.00039578,7]
[309795697,1704142245003,-5589.6596322,0.0003958,10]
[309795698,1704142245012,-500.0,0.00039588,2]
[309795699,1704142245022,-300.0,0.00039589,2]
[309795700,1704142245031,-4611.94478626,0.0003959,13]
[309795701,1704142245039,-151.58918569,0.0003959,5]
[309795702,1704142245048,-150.65,0.00039592,2]
[309795703,1704142245058,-184.29758683,0.000396,13]
[309795704,1704142245067,-1400.0,0.000396,14]
[309795705,1704142245076,-151.0,0.00039602,7]
[309795706,1704142245085,-151.0,0.00039602,7]
[309795707,1704142245094,-332.691786,0.00039602,7]
[309795708,1704142245103,-332.691786,0.00039602,7]
[309795709,1704142245112,-44717.2770576,0.00039603,10]
[309795710,1704142245121,-78508.1780255,0.00039603,4]
[309795711,1704142245130,-27948.298161,0.00039612,10]
[309795712,1704142245139,-381.621161,0.00039613,7]
[309795713,1704142245148,-381.621161,0.00039613,7]
[309795714,1704142245157,-151.0,0.00039613,7]
[309795715,1704142245166,-342.28707,0.00039613,7]
[309795716,1704142245175,-151.0,0.00039613,7]
[309795717,1704142245184,-239.88101956,0.0003962,2]
[309795718,1704142245193,-982.55618654,0.00039628,2]
[309795719,1704142245202,-1000.0,0.00039634,2]
[309795720,1704142245211,-500.0,0.00039659,2]
[309795721,1704142245220,-150.0,0.00039663,2]
[309795722,1704142245229,-1500.0,0.00039666,2]
[309795723,1704142245238,-512.62323424,0.0003968,15]
[309795724,1704142245248,-22358.6385288,0.0003968,10]
[309795725,1704142245258,-150.0,0.00039685,2]
[309795726,1704142245268,-27948.298161,0.0003969,10]
[309795727,1704142245277,-381.621161,0.0003969,7]
[309795728,1704142245285,-381.621161,0.0003969,7]
[309795729,1704142245294,-151.0,0.0003969,7]
[309795730,1704142245304,-342.28707,0.0003969,7]
[309795731,1704142245313,-263.241392,0.0003969,7]
[309795732,1704142245322,-151.0,0.0003969,7]
[309795733,1704142245332,-151.0,0.0003969,7]
[309795734,1704142245344,-332.691786,0.0003969,7]
[309795735,1704142245354,-332.691786,0.0003969,7]
[309795736,1704142245363,-5589.6596322,0.00039697,10]
[309795737,1704142245372,-55555.0,0.000397,3]
[309795738,1704142245383,-381.621161,0.000397,7]
[309795739,1704142245394,-381.621161,0.000397,7]
[309795740,1704142245405,-151.0,0.000397,7]
[309795741,1704142245415,-342.28707,0.000397,7]
[309795742,1704142245425,-1800.0,0.000397,14]
[309795743,1704142245434,-151.0,0.000397,7]
[309795744,1704142245446,-171.249918,0.000397,7]
[309795745,1704142245455,-1000.0,0.000397,2]
[309795746,1704142245465,-1000.0,0.000397,2]
[309795747,1704142245474,-1000.0,0.000397,2]
[309795748,1704142245483,-1000.0,0.000397,2]
[309795749,1704142245492,-1000.0,0.000397,2]
[309795750,1704142245501,-326.2949,0.000397,2]
[309795751,1704142245510,-500.0,0.000397,2]
[309795752,1704142245519,-500.0,0.000397,2]
[309795753,1704142245528,-500.0,0.000397,2]
[309795754,1704142245537,-500.0,0.000397,2]
[309795755,1704142245546,-184.7375,0.000397,2]
[309795756,1704142245555,-332.691786,0.000397,7]
[309795757,1704142245565,-332.691786,0.000397,7]
[309795758,1704142245574,-1500.0,0.00039703,2]
[309795759,1704142245583,-150.0,0.00039714,2]
[309795760,1704142245592,-150.0,0.00039719,2]
[309795761,1704142245601,-273.45827821,0.00039728,2]
[309795762,1704142245611,-150.0,0.00039755,2]
[309795763,1704142245621,-150.0,0.00039768,2]
[309795764,1704142245630,-5589.6596322,0.0003977,10]
[309795765,1704142245639,-1500.0,0.00039778,2]
[309795766,1704142245649,-16768.9788966,0.0003978,10]
[309795767,1704142245658,-78508.1780255,0.0003978,5]
[309795769,1704142245668,-151.0,0.0003978,7]
[309795770,1704142245677,-332.691786,0.0003978,7]
[309795771,1704142245686,-332.69178,0.0003978,7]
[309795772,1704142245695,-500.0,0.00039789,2]
[309795773,1704142245705,-1000.0,0.00039789,2]
[309795775,1704142245714,-1000.0,0.00039789,2]
[309795776,1704142245724,-903.27655234,0.00039789,2]
[309795777,1704142245733,-170.514809,0.0003979,2]
[309795778,1704142245742,-381.621161,0.0003979,7]
[309795779,1704142245751,-381.621167,0.0003979,7]
[309795780,1704142245761,-151.0,0.0003979,7]
[309795781,1704142245771,-342.287077,0.0003979,7]
[309795784,1704142245781,-978.80191316,0.000398,4]
[309795787,1704142245790,-18576.87143153,0.000398,2]
[309795790,1704142245799,-2300.0,0.000398,14]
[309795793,1704142245809,-150.0,0.00039819,2]
[309795796,1704142245818,-150.0,0.0003982,2]
[309795799,1704142245828,-150.0,0.00039854,2]
[309795802,1704142245837,-150.0,0.0003986,2]
[309795804,1704142245847,-150.0,0.00039873,2]
[309795806,1704142245856,-300.0,0.00039874,2]
[309795807,1704142245865,-500.0,0.00039888,2]
[309795808,1704142245875,-235.64446864,0.0003989,2]
[309795809,1704142245883,-936.7090788,0.0003989,2]
[309795810,1704142245893,-297.07495092,0.0003989,2]
[309795811,1704142245902,-180.87643953,0.0003989,2]
[309795812,1704142245911,-226.36772266,0.0003989,2]
[309795813,1704142245920,-953.49957497,0.0003989,2]
[309795814,1704142245931,-273.11983692,0.0003989,2]
[309795815,1704142245941,-982.55618654,0.00039895,2]
[309795816,1704142245951,-197.64559856,0.00039895,31]
[309795817,1704142245962,-1814.95,0.00039897,5]
[309795818,1704142245972,-1275.85672948,0.00039898,4]
[309795819,1704142245983,-755.68067117,0.00039898,2]
[309795820,1704142245995,-290.4910976,0.00039898,2]
[309795821,1704142246005,-1833.05,0.00039898,5]
[309795822,1704142246016,-1190.32396999,0.00039899,4]
[309795823,1704142246026,-2373.81440626,0.00039899,2]
[309795824,1704142246038,-20000.0,0.000399,7]
[309795825,1704142246048,-1000.0,0.000399,15]
[309795826,1704142246058,-1000.0,0.000399,15]
[309795827,1704142246069,-171.881261,0.000399,2]
[309795828,1704142246079,-400.0,0.000399,14]
[309795829,1704142246089,-254.37672,0.000399,11]
[309795830,1704142246099,-150.0,0.000399,9]
[309795831,1704142246112,-150.0,0.000399,9]
[309795832,1704142246122,-150.0,0.00039914,2]
[309795833,1704142246131,-150.0,0.00039917,2]
[309795834,1704142246141,-150.0,0.00039921,2]
[309795835,1704142246150,-150.0,0.00039925,2]
[309795836,1704142246160,-245.3018834,0.00039931,2]
[309795837,1704142246170,-300.0,0.00039931,2]
[309795838,1704142246180,-300.0,0.00039931,2]
[309795839,1704142246190,-300.0,0.00039931,2]
[309795840,1704142246200,-300.0,0.00039931,2]
[309795841,1704142246211,-300.0,0.00039931,2]
[309795842,1704142246220,-300.0,0.00039931,2]
[309795843,1704142246229,-300.0,0.00039931,2]
[309795844,1704142246238,-300.0,0.00039931,2]
[309795845,1704142246247,-300.0,0.00039931,2]
[309795846,1704142246256,-300.0,0.00039931,2]
[309795847,1704142246266,-302.85410988,0.00039931,2]
[309795848,1704142246275,-150.0,0.00039947,2]
[309795849,1704142246284,-1500.0,0.00039964,2]
[309795850,1704142246293,-200.0,0.00039968,2]
[309795851,1704142246304,-200.0,0.00039968,2]
[309795852,1704142246313,-150.0,0.00039969,2]
[309795853,1704142246323,-235524.534077,0.0003997,5]
[309795855,1704142246331,-150.0,0.00039972,2]
[309795857,1704142246341,-150.0,0.00039974,2]
[309795858,1704142246350,-155.4439,0.00039974,2]
[309795860,1704142246359,-150.0,0.00039977,2]
[309795863,1704142246369,-155.19605017,0.00039978,4]
[309795865,1704142246378,-155.31701115,0.00039978,4]
[309795867,1704142246390,-1040.669109,0.00039978,4]
[309795868,1704142246399,-155.40316722,0.00039978,4]
[309795871,1704142246409,-150.0,0.00039979,2]
[309795874,1704142246428,-250.0,0.00039979,2]
[309795876,1704142246439,-1131.17602535,0.00039979,4]
[309795878,1704142246449,-207.84158297,0.0003998,4]
[309795880,1704142246458,-155.32735518,0.0003998,4]
[309795882,1704142246468,-224.63428457,0.0003998,4]
[309795884,1704142246478,-157016.356051,0.0003998,5]
[309795886,1704142246487,-250.0,0.00039984,2]
[309795888,1704142246497,-211.06064482,0.00039985,2]
[309795890,1704142246506,-1631.46314703,0.00039987,2]
[309795892,1704142246516,-2130.60588164,0.00039988,4]
[309795894,1704142246525,-2264.45644312,0.00039989,4]
[309795896,1704142246535,-150.0,0.00039989,2]
[309795898,1704142246544,-250.0,0.00039989,2]
[309795900,1704142246553,-260.94819796,0.00039989,2]
[309795902,1704142246563,-150.0000001,0.00039989,2]
[309795904,1704142246573,-250.0,0.00039989,2]
[309795906,1704142246582,-1010.05915409,0.00039989,2]
[309795908,1704142246593,-265095.09193633,0.0003999,2]
[309795910,1704142246603,-1480.0,0.0003999,12]
[309795912,1704142246612,-20256.0,0.0003999,2]
[309795914,1704142246622,-2184479.62752561,0.00039992,3]
[309795916,1704142246632,-22108.2574432,0.00039992,2]
[309795918,1704142246641,-11420.24202921,0.00039992,2]
[309795921,1704142246651,-480.12626646,0.00039995,2]
[309795923,1704142246662,-17321.9285179,0.00039995,2]
[309795925,1704142246671,-3792.0444022,0.00039995,2]
[309795927,1704142246681,-575.6823281,0.00039995,2]
[309795929,1704142246690,-33661.7514503,0.00039995,2]
[309795931,1704142246700,-9466.3181439,0.00039995,2]
[309795933,1704142246709,-354.27083654,0.00039995,2]
[309795935,1704142246718,-250.0,0.00039999,2]
[309795937,1704142246727,-250.0,0.00039999,2]
[309795939,1704142246737,-427.23663159,0.00039999,4]
[309795941,1704142246746,-384.75280747,0.00039999,4]
[309795943,1704142246755,-256.34197895,0.00039999,7]
[309795945,1704142246765,-164.89406034,0.00039999,7]
[309795947,1704142246775,-428.96661488,0.00039999,2]
[309795949,1704142246784,-257.37996893,0.00039999,7]
[309795951,1704142246795,-601.52387406,0.00039999,2]
[309795953,1704142246805,-360.91432444,0.00039999,7]
[309795955,1704142246815,-1090.89495651,0.00039999,30]
[309795957,1704142246826,-100000.0,0.0004,10]
[309795959,1704142246835,-1668.78068085,0.0004,4]
[309795961,1704142246845,-1956.42492667,0.0004,4]
[309795963,1704142246855,-11368.3500733,0.0004,30]
[309795965,1704142246864,-2424.78926863,0.0004,2]
[309795968,1704142246875,-33687.00797237,0.0004,4]
[309795970,1704142246884,-3890.89891836,0.0004,3]
[309795972,1704142246893,-2263.56074827,0.0004,4]
[309795974,1704142246903,-1081.10657627,0.0004,4]
[309795975,1704142246914,-2671.32874608,0.0004,4]
[309795977,1704142246923,-39324.0,0.0004,2]
[309795979,1704142246933,-640.14753087,0.0004,2]
[309795982,1704142246942,-9096.91751771,0.0004,2]
[309795984,1704142246951,-8932.58450857,0.0004,2]
[309795986,1704142246961,-36471.53156967,0.0004,2]
[309795988,1704142246970,-262.56524491,0.0004,2]
[309795990,1704142246981,-251165.74594986,0.0004,2]
[309795992,1704142246990,-339648.80094641,0.0004,2]
[309796008,1704142247354,-360.97579927,0.00039999,4]
[309796009,1704142247363,-154.70391397,0.00039999,7]
[309796010,1704142247375,-13807.34567186,0.0004,2]
[309796011,1704142247388,-333.68340211,0.0004,2]
[309796012,1704142247401,-895.16807044,0.0004,2]
[309796013,1704142247444,-3000.86209071,0.0004,2]
[309796014,1704142247456,-5970.11842829,0.0004,2]
[309796015,1704142247471,-5015.7536,0.0004,2]
[309796016,1704142247568,-28550.68854069,0.0004,2]
[309796017,1704142247888,-239.600949,0.00038,7]
[309796018,1704142247898,-239.600949,0.00038851,7]
[309796019,1704142247909,-68.238102,0.00038927,7]
[309796020,1704142247921,-171.362847,0.00038927,7]
[309796021,1704142247931,-123300.94213757,0.0004,2]
[309796022,1704142247943,-22575.67113471,0.0004,2]
[309796023,1704142247957,-1140.14910916,0.0004,2]
[309796024,1704142247974,-3472.01863246,0.0004,2]
[309796025,1704142247985,-27682.12601481,0.0004,2]
[309796026,1704142248070,-1769.80614347,0.00035341,4]
[309796027,1704142248085,-643.97892178,0.00035341,4]
[309796028,1704142248097,-1042.41840813,0.00035341,4]
[309796029,1704142248108,-2748.5199521,0.00035341,4]
[309796030,1704142248117,-15948.01259876,0.0004,2]
[309796031,1704142248127,-1200.0,0.0004,30]
[309796032,1704142248137,-11151.84047248,0.0004,2]
[309796033,1704142248146,-202.72573354,0.0004,120]
[309796034,1704142248157,-6000.0,0.0004,77]
[309796035,1704142248167,-15622.29273221,0.0004,30]
[309796036,1704142260752,188.77832841,0.0002201,2]
[309796037,1704142266794,597.18357169,0.0002201,2]
[309796038,1704142294465,544.0,0.000225,2]
[309796040,1704142431089,46906.50423156,0.00023,2]
[309796041,1704142432399,1218.33943354,0.00023,15]
[309796044,1704142585325,204.69445,0.00022121,2]
[309796061,1704143191114,409.3889,0.0002221,2]
[309796109,1704143432191,-251.7523985,0.00023942,2]
[309796113,1704143432245,-2011.09752025,0.00023942,2]
[309796115,1704143432255,-241.61161094,0.00023942,2]
[309796117,1704143432264,-155.0,0.00023943,2]
[309796119,1704143432274,-1490.6423875,0.00023943,2]
[309796121,1704143432285,-39.32848131,0.00023943,2]
[309796124,1704143432311,-292.57293729,0.00023943,2]
[309796126,1704143432323,-584.29637819,0.00023943,2]
[309796167,1704143438107,-5498.7522942,0.00023943,2]
[309796168,1704143438117,-418.39942505,0.00023943,2]
[309796169,1704143438126,-1759.20745398,0.00023944,2]
[309796170,1704143438138,-851.75799488,0.00023944,2]
[309796171,1704143438147,-416.54397333,0.00023945,2]
[309796172,1704143438157,-540.90072547,0.00023945,2]
[309796173,1704143438166,-527.27825206,0.00023945,2]
[309796174,1704143438175,-251.99880636,0.00023946,2]
[309796175,1704143438185,-619.96222449,0.00023946,2]
[309796176,1704143438196,-5886.58412441,0.00023946,2]
[309796177,1704143438216,-841.77750463,0.00023946,2]
[309796178,1704143438228,-8333.13137547,0.00023946,2]
[309796179,1704143438257,-10064.1882787,0.00023946,2]
[309796180,1704143438266,-244.43466943,0.00023946,2]
[309796181,1704143438275,-155.0,0.00023947,2]
[309796182,1704143438284,-92.46095315,0.00023947,2]
[309796183,1704143438313,-2094.01118884,0.00023947,2]
[309796184,1704143438325,-8814.63206784,0.00023947,2]
[309796196,1704143438681,-606.70110647,0.00023947,2]
[309796197,1704143438698,-12617.08034061,0.00023947,2]
[309796207,1704143440669,-1223.84334391,0.00023944,2]
[309796208,1704143440681,-87.88665609,0.00023947,2]